bitfinex/quotes_ETHUSD_20250115
["timestamp","ask_amount","ask_price","bid_price","bid_amount"]
[1736975617585,2.8871,3440.1,3439.1,0.83745765]
[1736975617790,0.188,3440.0,3439.1,0.83745765]
[1736975617989,0.188,3440.0,3439.3,2.90755]
[1736975618190,0.188,3440.0,3439.2,2.90765]
[1736975618523,0.188,3439.9,3439.5,0.8089]
[1736975618724,0.188,3439.9,3439.6,2.90725]
[1736975618938,0.188,3439.9,3439.6,2.93484881]
[1736975619824,2.093,3440.1,3439.6,2.93484881]
[1736975620024,0.188,3440.0,3439.6,0.02759881]
[1736975620233,0.4161,3440.0,3439.6,0.02759881]
[1736975620531,0.188,3440.0,3439.7,0.02738994]
[1736975620901,0.188,3440.0,3439.3,2.90748]
[1736975621221,0.188,3440.0,3439.4,0.02952056]
[1736975622024,0.188,3440.0,3439.4,2.93692056]
[1736975622523,0.188,3440.0,3439.4,0.02952056]
[1736975622694,0.188,3440.0,3439.2,3.71653]
[1736975622899,0.188,3440.0,3439.3,0.02959245]
[1736975623101,0.188,3440.0,3439.3,2.93713245]
[1736975624937,0.188,3439.9,3439.3,2.93713245]
[1736975625639,0.188,3439.9,3439.3,0.02959245]
[1736975627200,0.188,3439.9,3439.5,2.90731]
[1736975627412,0.188,3439.9,3439.6,2.90728]
[1736975627616,0.188,3439.9,3439.6,2.93561113]
[1736975630353,2.093,3440.1,3439.6,2.93561113]
[1736975630530,0.188,3440.0,3439.6,2.93561113]
[1736975630855,0.7941,3440.4,3439.7,0.8255]
[1736975631093,0.188,3440.3,3440.2,2.90678]
[1736975631363,0.7975,3441.0,3440.2,0.03263585]
[1736975631530,0.30369207,3442.1,3440.4,2.90663]
[1736975631531,0.188,3440.9,3440.4,2.90663]
[1736975631732,0.7975,3441.3,3440.8,2.9063]
[1736975631932,0.188,3441.2,3440.8,2.9063]
[1736975632229,0.188,3441.2,3440.9,0.03476942]
[1736975632616,0.188,3441.1,3440.9,0.03476942]
[1736975633451,0.188,3441.0,3440.9,0.03476942]
[1736975634739,0.188,3441.0,3440.6,2.90645]
[1736975634941,0.188,3441.0,3440.9,0.03476942]
[1736975635143,0.188,3441.0,3440.6,2.90645]
[1736975635349,0.188,3441.0,3440.9,0.03476942]
[1736975635550,0.188,3441.0,3440.6,2.90645]
[1736975635724,0.188,3441.0,3440.9,0.03476942]
[1736975635929,0.188,3441.0,3440.7,2.90634]
[1736975636149,0.188,3441.0,3440.8,0.03484327]
[1736975636659,0.188,3441.0,3440.7,2.90634]
[1736975637030,0.188,3441.0,3440.8,0.03484327]
[1736975637458,0.188,3441.0,3440.7,2.90634]
[1736975637663,0.188,3441.0,3440.9,0.03476942]
[1736975637964,0.188,3441.0,3440.7,2.90634]
[1736975638160,0.188,3441.0,3440.7,3.23806057]
[1736975638533,0.188,3441.0,3440.7,2.90634]
[1736975640427,0.188,3441.0,3440.5,0.41086566]
[1736975640633,0.188,3441.0,3440.4,2.90658]
[1736975641336,0.188,3441.0,3440.3,0.8255]
[1736975641555,0.188,3441.0,3440.3,3.73221]
[1736975642337,0.188,3441.0,3440.4,2.90663]
[1736975643771,0.188,3441.0,3440.5,2.90653]
[1736975645431,0.7975,3441.3,3440.5,2.90651]
[1736975645636,0.188,3440.9,3440.5,2.90651]
[1736975651457,0.188,3440.9,3440.3,0.8255]
[1736975651683,0.188,3440.9,3440.4,2.90661]
[1736975652294,0.188,3440.9,3440.4,0.373211]
[1736975652496,0.188,3440.8,3440.6,3.0]
[1736975652795,0.188,3440.8,3440.7,2.90638]
[1736975654584,0.188,3440.8,3440.3,0.8255]
[1736975654790,0.188,3440.8,3440.5,2.90655]
[1736975655679,0.188,3440.8,3440.3,3.7322]
[1736975655997,0.188,3440.8,3439.5,4.11610459]
[1736975656199,2.90639,3440.7,3439.8,2.90708]
[1736975656494,1.118839,3440.6,3439.8,2.90708]
[1736975656701,1.118839,3440.6,3439.6,0.8264]
[1736975656702,1.118839,3440.6,3439.9,2.94529076]
[1736975658197,1.118839,3440.6,3439.9,0.03824076]
[1736975658398,2.9066,3440.5,3439.5,2.90736]
[1736975658610,1.118839,3440.6,3440.0,0.03815948]
[1736975658789,1.118839,3440.6,3439.6,2.90724]
[1736975658790,0.8094,3440.6,3439.6,2.90724]
[1736975659104,0.8094,3440.6,3440.1,0.03461656]
[1736975659274,0.8094,3440.6,3439.6,2.90724]
[1736975659478,0.8094,3440.6,3440.1,0.03461656]
[1736975659681,3.71588,3440.6,3439.6,2.90724]
[1736975659866,0.390388,3440.5,3440.1,0.03461656]
[1736975660069,0.390388,3440.5,3439.6,2.90724]
[1736975660266,0.390388,3440.5,3440.1,0.03461656]
[1736975660502,0.390388,3440.5,3439.6,2.90724]
[1736975660825,0.8094,3440.4,3439.7,0.03491211]
[1736975661150,4.1266778,3440.4,3439.7,0.03491211]
[1736975661470,4.1266778,3440.4,3439.4,2.90747]
[1736975661670,4.1266778,3440.4,3439.8,0.03483822]
[1736975661914,4.1266778,3440.4,3439.5,4.11616459]
[1736975662081,1.2200378,3440.4,3439.5,4.11616459]
[1736975662280,1.2200378,3440.4,3439.6,0.03498601]
[1736975663208,1.2200378,3440.4,3439.6,4.1510906]
[1736975666674,0.8094,3440.3,3439.6,1.2437806]
[1736975668947,0.8094,3440.3,3439.6,0.03498601]
[1736975669223,1.181005,3440.3,3439.6,0.03498601]
[1736975670092,4.087805,3440.3,3439.6,0.03498601]
[1736975670293,3.7162,3440.3,3439.6,0.03498601]
[1736975671021,3.7162,3440.3,3439.4,1.20879459]
[1736975671230,3.7162,3440.3,3439.7,0.03539229]
[1736975671389,3.7162,3440.3,3439.4,1.20879459]
[1736975671593,3.7162,3440.3,3439.8,0.0353184]
[1736975671793,4.08782,3440.3,3439.3,4.11633459]
[1736975672036,4.08782,3440.3,3439.9,0.03524451]
[1736975672196,4.08782,3440.3,3439.3,4.11633459]
[1736975672401,4.08782,3440.3,3440.0,0.03517062]
[1736975672697,4.08782,3440.3,3439.3,4.11633459]
[1736975672896,4.08782,3440.3,3440.1,0.03509674]
[1736975673234,0.408782,3440.2,3439.4,2.90747]
[1736975676030,0.408782,3440.2,3439.3,1.20879459]
[1736975676230,2.90682,3440.2,3439.3,1.20879459]
[1736975676432,2.90682,3440.2,3439.3,4.11628459]
[1736975677837,0.8094,3440.3,3439.3,4.11628459]
[1736975678434,0.8094,3440.3,3439.4,2.90746]
[1736975678810,3.71614,3440.3,3439.4,2.90746]
[1736975679028,0.371614,3440.2,3439.4,2.90746]
[1736975682633,3.278424,3440.2,3439.2,4.94279459]
[1736975683005,2.9069,3440.1,3439.2,4.94279459]
[1736975683202,2.9069,3440.1,3439.3,0.03276759]
[1736975683825,0.7508,3439.9,3439.3,0.03276759]
[1736975684160,0.188,3439.8,3439.3,0.03276759]
[1736975687474,0.57257,3439.8,3439.3,0.03276759]
[1736975693193,0.188,3439.8,3439.3,0.03276759]
[1736975694584,0.188,3439.8,3439.3,1.24156218]
[1736975695693,0.188,3439.8,3439.3,0.03276759]
[1736975696340,0.774,3439.7,3439.3,1.24156218]
[1736975696621,2.90748,3439.4,3439.3,1.24156218]
[1736975696804,3.275628,3439.4,3439.3,1.24156218]
[1736975697325,3.275628,3439.4,3439.3,0.03276759]
[1736975697694,3.275628,3439.4,3438.7,1.20879459]
[1736975697889,3.275628,3439.4,3439.3,0.02836725]
[1736975698095,3.275628,3439.4,3438.7,1.20879459]
[1736975698290,0.3275628,3439.3,3438.7,1.20879459]
[1736975699713,2.90764,3439.3,3438.7,1.20879459]
[1736975700045,2.90764,3439.3,3438.8,1.20879459]
[1736975700848,0.774,3439.1,3438.8,1.20879459]
[1736975701517,0.55,3439.0,3438.4,1.20879459]
[1736975701710,2.90809,3438.7,3438.4,1.20879459]
[1736975701918,0.290809,3438.6,3438.3,1.20879459]
[1736975702516,0.290809,3438.6,3438.2,1.20879459]
[1736975702749,2.90802,3438.8,3438.2,1.20879459]
[1736975703127,2.90802,3438.8,3438.1,1.20879459]
[1736975703322,2.90802,3438.8,3438.2,1.20879459]
[1736975703724,2.90804,3438.8,3438.2,1.20879459]
[1736975704147,2.90826,3438.5,3438.1,1.20879459]
[1736975704327,3.276486,3438.5,3438.1,1.20879459]
[1736975704720,3.276486,3438.5,3437.9,1.20879459]
[1736975705219,3.276486,3438.5,3437.8,1.20879459]
[1736975705674,0.5728912,3439.2,3437.8,1.20879459]
[1736975705883,0.5728912,3439.2,3437.9,1.34162315]
[1736975706151,0.187,3439.1,3438.6,0.8061]
[1736975707174,0.774,3438.9,3438.4,1.20879459]
[1736975707548,0.774,3438.9,3438.3,2.01489459]
[1736975707944,1.0033,3439.1,3438.3,2.01489459]
[1736975708140,0.55,3439.0,3438.3,1.20879459]
[1736975708337,2.90807,3438.7,3438.3,1.20879459]
[1736975709178,2.90807,3438.7,3437.9,1.96459459]
[1736975710479,0.8163,3439.2,3438.0,0.7558]
[1736975710645,0.187,3438.6,3438.5,3.66403]
[1736975710841,0.187,3438.6,3438.5,0.7558]
[1736975711458,0.8163,3439.2,3438.5,0.7558]
[1736975711655,0.187,3439.1,3438.5,0.7558]
[1736975712175,0.187,3439.1,3438.5,3.66402]
[1736975712576,0.187,3439.1,3438.5,0.7558]
[1736975712884,0.187,3439.1,3438.6,2.90812]
[1736975713250,0.187,3439.1,3438.7,0.02883139]
[1736975716906,0.187,3439.1,3438.8,0.02871346]
[1736975717337,0.187,3439.1,3438.5,0.7558]
[1736975717490,0.187,3439.1,3438.9,0.02865537]
[1736975717805,0.496465,3439.1,3438.5,0.7558]
[1736975717982,0.187,3439.1,3438.5,0.7558]
[1736975718181,0.187,3439.1,3438.6,0.02882965]
[1736975723158,0.3842708,3442.0,3439.3,0.7666]
[1736975723306,0.7699,3441.4,3440.5,0.7666]
[1736975723507,0.81116591,3440.9,3440.8,2.9063]
[1736975724221,0.187,3441.2,3441.1,2.90604]
[1736975724436,0.1342708,3442.0,3441.4,2.90578]
[1736975724613,0.187,3441.9,3440.9,2.90621]
[1736975724824,0.187,3441.9,3440.9,4.11500459]
[1736975725551,0.187,3441.9,3441.0,1.20879459]
[1736975725842,0.1342708,3442.0,3441.2,0.7666]
[1736975726014,0.1342708,3442.0,3441.9,2.90537]
[1736975726443,0.1342708,3442.0,3441.9,3.67197]
[1736975727658,8e-07,3442.0,3441.9,6.67197]
[1736975727815,8e-07,3442.0,3441.9,3.67197]
[1736975728436,0.1870008,3442.0,3441.5,3.8286]
[1736975728644,0.187,3441.9,3441.5,3.73429]
[1736975728846,0.187,3441.9,3441.5,0.8286]
[1736975729075,0.187,3441.9,3441.5,1.50424965]
[1736975729247,0.187,3441.9,3441.7,2.90554]
[1736975729634,0.187,3441.8,3441.7,2.90554]
[1736975730165,8e-07,3442.0,3441.7,2.90554]
[1736975730357,0.187,3441.8,3441.7,2.90554]
[1736975733139,0.187,3441.8,3441.7,3.34651896]
[1736975738498,8e-07,3442.0,3441.9,2.90537]
[1736975738667,0.1870008,3442.0,3441.9,2.90537]
[1736975739200,8e-07,3442.0,3441.9,2.90537]
[1736975739396,0.1870008,3442.0,3441.9,2.90537]
[1736975739596,0.1870008,3442.0,3441.9,3.5305589]
[1736975740107,0.1870008,3442.0,3441.9,0.6251889]
[1736975740266,0.1870008,3442.0,3441.7,3.34650896]
[1736975741290,0.187,3441.9,3441.7,3.34650896]
[1736975741493,8e-07,3442.0,3441.7,3.34650896]
[1736975741705,0.187,3441.8,3441.7,3.34650896]
[1736975742004,0.187,3441.8,3441.5,0.8286]
[1736975742318,0.187,3441.8,3441.3,2.90582]
[1736975743029,0.187,3441.8,3441.1,3.70547]
[1736975743315,0.187,3441.8,3441.3,2.90583]
[1736975744721,0.187,3441.8,3441.4,2.90576]
[1736975745368,0.187,3441.8,3441.2,2.90592]
[1736975746109,0.187,3441.8,3441.3,2.90581]
[1736975751141,0.187,3441.8,3441.4,0.27037919]
[1736975752528,0.187,3441.8,3441.5,0.27037919]
[1736975753457,0.7903,3441.7,3441.5,0.27037919]
[1736975753658,0.7903,3441.7,3441.6,0.27037919]
[1736975757390,4.62061727,3441.7,3441.6,0.27037919]
[1736975759172,4.62061727,3441.7,3440.6,2.90645]
[1736975759173,3.45564,3441.6,3440.6,2.90645]
[1736975760683,3.45564,3441.6,3440.7,0.2716948]
[1736975761408,0.55,3441.5,3440.7,0.2716948]
[1736975761681,3.69628,3441.2,3440.7,0.2716948]
[1736975761881,0.556628,3441.1,3440.7,0.2716948]
[1736975762249,0.556628,3441.1,3440.5,1.20879459]
[1736975762451,0.556628,3441.1,3440.3,4.11547459]
[1736975763191,0.556628,3441.1,3440.3,2.90668]
[1736975763689,0.556628,3441.1,3440.4,0.27142017]
[1736975764190,0.556628,3441.1,3440.4,1.48021476]
[1736975764865,0.7903,3441.6,3440.5,0.27142017]
[1736975765066,0.7903,3441.6,3440.6,0.7551]
[1736975765067,0.187,3441.5,3440.6,0.7551]
[1736975765269,0.187,3441.5,3441.0,2.90612]
[1736975765455,0.187,3441.5,3440.6,4.87032459]
[1736975765456,0.187,3441.4,3441.2,2.90596]
[1736975765659,0.7903,3441.9,3441.2,2.90596]
[1736975765896,0.187,3441.3,3441.2,2.90596]
[1736975766090,0.7903,3441.9,3441.4,2.90576]
[1736975766297,0.187,3441.8,3441.4,2.90576]
[1736975767200,8e-07,3442.0,3441.4,2.90576]
[1736975767499,8e-07,3442.0,3441.5,1.21245757]
[1736975767698,0.187,3441.9,3441.5,1.21245757]
[1736975767894,0.187,3441.9,3441.7,1.21245757]
[1736975768499,0.187,3441.8,3441.6,1.21245757]
[1736975769092,0.9773,3441.8,3441.7,1.81319189]
[1736975769405,0.9773,3441.8,3441.5,2.41758918]
[1736975769406,0.9773,3441.8,3441.6,1.81319189]
[1736975769616,0.38826008,3441.7,3441.6,1.81319189]
[1736975770342,3.88279,3441.8,3441.4,1.2158398]
[1736975770624,3.88279,3441.8,3441.3,1.2158398]
[1736975770921,0.9773,3441.8,3441.3,1.2158398]
[1736975772224,0.9773,3441.8,3441.4,1.2158398]
[1736975772828,0.9773,3441.8,3441.2,1.2158398]
[1736975774685,4.27102708,3441.8,3441.2,1.2158398]
[1736975775137,4.27102708,3441.8,3441.0,1.81319189]
[1736975775138,4.27102708,3441.8,3441.1,1.2158398]
[1736975776191,4.27102708,3441.8,3441.0,1.2158398]
[1736975776708,2.90554,3441.7,3441.0,1.2158398]
[1736975777415,2.90554,3441.7,3440.9,1.2158398]
[1736975777731,0.42711071,3441.6,3440.9,1.2158398]
[1736975779857,0.42711071,3441.6,3441.0,1.2158398]
[1736975780059,3.33273071,3441.6,3441.0,1.2158398]
[1736975780409,3.33273071,3441.6,3440.9,1.2158398]
[1736975782160,0.42711071,3441.6,3440.9,1.2158398]
[1736975782463,0.55,3441.7,3440.9,1.2158398]
[1736975784360,0.55,3441.7,3441.0,1.2158398]
[1736975786850,0.55,3441.7,3441.1,1.2158398]
[1736975787050,3.45556,3441.7,3441.1,1.2158398]
[1736975787355,0.443286,3441.6,3441.0,1.2158398]
[1736975787876,0.9773,3441.8,3441.1,1.2158398]
[1736975787877,0.7903,3441.8,3441.1,1.2158398]
[1736975788030,0.187,3441.7,3441.2,0.7744]
[1736975788380,0.187,3441.6,3441.2,0.7744]
[1736975788537,0.187,3441.5,3441.4,1.2158398]
[1736975789188,0.9548,3441.5,3441.4,1.2158398]
[1736975789345,1.340827,3441.5,3441.3,1.2158398]
[1736975789878,1.340827,3441.5,3441.0,1.2158398]
[1736975790166,0.9548,3441.5,3441.0,1.2158398]
[1736975790373,0.9548,3441.5,3441.1,1.2158398]
[1736975790969,0.187,3441.5,3441.2,1.2158398]
[1736975791587,0.187,3441.5,3441.3,1.2158398]
[1736975792070,0.187,3441.5,3441.4,1.2158398]
[1736975797615,0.187,3441.5,3441.3,1.81319189]
[1736975797917,8e-07,3442.0,3441.3,2.90716032]
[1736975798119,0.186,3441.9,3441.4,0.7865]
[1736975798422,8e-07,3442.0,3441.9,2.90537]
[1736975798713,0.1860008,3442.0,3441.9,2.90537]
[1736975798924,8e-07,3442.0,3441.9,4.52991839]
[1736975799891,0.7767,3443.5,3443.0,2.90443]
[1736975800226,0.186,3443.5,3443.4,2.9041]
[1736975801793,0.186,3443.5,3443.4,4.11823503]
[1736975802200,2.094,3443.8,3443.4,4.11823503]
[1736975802416,0.186,3443.5,3443.4,4.90473503]
[1736975802652,0.186,3443.5,3443.4,6.6906]
[1736975802944,2.094,3443.8,3443.5,2.904]
[1736975803157,0.186,3443.7,3443.6,2.90393]
[1736975804054,2.90283,3445.0,3443.9,2.90367]
[1736975804264,2.90283,3445.0,3444.0,3.6901]
[1736975804265,3.186,3444.9,3444.0,3.6901]
[1736975804399,3.0,3444.9,3444.0,3.6901]
[1736975804598,0.186,3444.8,3444.0,3.6901]
[1736975804834,0.186,3444.7,3444.0,3.6901]
[1736975805333,0.65022736,3444.7,3444.0,0.7865]
[1736975805545,0.186,3444.6,3444.0,0.7865]
[1736975806252,0.186,3444.5,3444.0,0.7865]
[1736975806845,0.9511278,3445.5,3444.3,2.90326]
[1736975806999,0.186,3445.4,3444.4,2.90324]
[1736975807204,0.40394678,3445.3,3444.4,2.90324]
[1736975807546,0.186,3445.2,3444.4,2.90324]
[1736975808046,0.186,3445.2,3444.1,2.90351]
[1736975808207,0.186,3445.2,3444.5,2.90317]
[1736975808546,0.186,3445.2,3444.0,3.69005]
[1736975808547,0.186,3445.2,3444.2,2.90336]
[1736975808706,0.186,3445.2,3444.2,3.32902155]
[1736975808910,3.08862,3445.2,3444.2,0.42566155]
[1736975809109,3.08862,3445.2,3444.1,2.90348]
[1736975809450,3.08862,3445.2,3444.0,0.7865]
[1736975809451,3.08862,3445.2,3444.2,2.9034]
[1736975810665,0.8282,3445.1,3444.2,2.9034]
[1736975810944,0.55,3444.2,3443.4,1.21413503]
[1736975811116,0.186,3444.1,3442.9,0.7626]
[1736975811325,3.08953,3444.1,3443.0,0.67626]
[1736975811682,2.90362,3444.0,3443.0,3.67626]
[1736975811853,3.08962,3444.0,3443.0,3.67626]
[1736975812008,3.08962,3444.0,3443.0,3.58068]
[1736975813312,0.186,3444.0,3443.0,3.58068]
[1736975813551,2.90368,3443.9,3443.0,3.58068]
[1736975813748,2.90368,3443.9,3442.9,0.7626]
[1736975813749,0.34242,3444.0,3442.9,0.7626]
[1736975813952,0.8282,3443.9,3442.9,0.7626]
[1736975814315,2.90377,3443.8,3442.9,0.7626]
[1736975814509,0.8282,3443.9,3442.9,0.7626]
[1736975814711,2.90385,3443.7,3442.9,0.7626]
[1736975815049,2.90385,3443.7,3442.6,0.7626]
[1736975815050,2.90418,3443.4,3442.6,0.7626]
[1736975815345,3.7324,3443.3,3442.4,3.0]
[1736975815574,0.55,3443.6,3442.4,3.0]
[1736975815748,2.90405,3443.5,3442.6,3.0]
[1736975815936,2.90405,3443.5,3442.3,0.7626]
[1736975816133,0.8282,3444.7,3442.5,0.7626]
[1736975816375,2.90343,3444.2,3443.3,0.7626]
[1736975816757,0.55,3444.5,3443.3,3.66678]
[1736975816951,2.90336,3444.3,3443.3,3.66678]
[1736975817274,0.8282,3444.7,3443.3,0.7626]
[1736975817438,0.8282,3444.7,3443.7,2.90384]
[1736975817439,0.186,3444.6,3443.7,2.90384]
[1736975817630,0.55,3444.5,3443.7,2.90384]
[1736975817835,0.55,3444.5,3443.5,2.90399]
[1736975818030,0.55,3444.5,3443.5,3.561071]
[1736975818469,0.186,3444.4,3443.5,3.561071]
[1736975818875,3.45335,3444.3,3443.3,3.66675]
[1736975819090,3.45335,3444.3,3443.4,2.90407]
[1736975819091,0.55,3444.3,3443.4,2.90407]
[1736975819238,0.186,3444.2,3443.4,2.90407]
[1736975820376,0.186,3444.2,3443.3,0.7626]
[1736975820681,2.90361,3444.0,3443.0,0.7626]
[1736975820981,0.66882819,3443.9,3443.1,2.90435]
[1736975821775,0.66882819,3443.9,3443.2,2.90425]
[1736975821977,0.8282,3444.1,3443.2,2.90425]
[1736975822289,0.186,3443.8,3443.2,2.90425]
[1736975822657,0.186,3443.7,3443.2,2.90425]
[1736975822978,0.186,3443.7,3443.0,3.66701]
[1736975823479,0.186,3443.6,3443.0,3.66701]
[1736975823675,0.186,3443.6,3443.0,4.32417]
[1736975824484,0.186,3443.6,3443.0,3.66701]
[1736975824678,0.186,3443.6,3442.1,2.56322417]
[1736975824679,0.8282,3443.5,3442.7,0.7626]
[1736975824851,3.73224,3443.5,3442.4,1.96953354]
[1736975825180,3.73224,3443.5,3442.5,2.90485]
[1736975828594,0.8282,3443.5,3442.5,2.90485]
[1736975828891,2.9041,3443.4,3442.5,2.90485]
[1736975829054,3.29593,3443.4,3442.5,2.90485]
[1736975829462,3.29593,3443.4,3442.4,0.7626]
[1736975829691,3.29593,3443.4,3442.5,2.90485]
[1736975830260,3.29593,3443.4,3442.6,0.27123548]
[1736975831177,0.39183,3443.4,3442.4,0.7626]
[1736975831502,0.8282,3443.5,3442.6,2.90476]
[1736975832576,0.7782,3443.5,3442.6,2.90476]
[1736975834717,0.7782,3443.5,3442.5,0.49695335]
[1736975834865,0.186,3443.4,3443.2,0.8251]
[1736975835213,0.186,3443.5,3443.4,2.9041]
[1736975835383,0.186,3443.5,3443.4,3.567447]
[1736975835787,0.8053,3444.5,3443.4,3.663347]
[1736975836022,0.8053,3444.5,3444.2,2.90342]
[1736975836230,0.186,3444.4,3444.2,2.90342]
[1736975836366,0.186,3444.3,3444.2,2.90342]
[1736975837174,2.90267,3445.2,3443.9,1.20693354]
[1736975837373,0.186,3445.1,3444.0,4.41721839]
[1736975837577,0.8053,3445.3,3444.4,2.90323]
[1736975837788,0.186,3445.2,3444.5,2.90316]
[1736975837963,0.186,3445.1,3444.5,2.90316]
[1736975838159,0.186,3445.0,3444.5,2.90316]
[1736975840904,0.186,3445.0,3444.5,4.11009354]
[1736975841879,0.55,3445.2,3444.5,1.20693354]
[1736975842182,0.7625,3445.0,3444.5,1.20693354]
[1736975842377,0.55,3444.7,3444.5,1.20693354]
[1736975842597,1.3125,3444.6,3444.5,1.20693354]
[1736975842794,0.55,3444.5,3444.2,1.20693354]
[1736975842966,3.66584,3444.3,3444.2,1.20693354]
[1736975843489,3.66584,3444.3,3443.6,1.20693354]
[1736975843697,0.421584,3444.2,3443.6,1.20693354]
[1736975844405,3.325034,3444.2,3443.6,1.20693354]
[1736975844787,2.90353,3444.1,3443.6,1.20693354]
[1736975844986,0.421584,3444.2,3443.6,1.20693354]
[1736975845167,0.186,3444.1,3443.6,1.20693354]
[1736975845920,0.186,3444.1,3443.7,1.20693354]
[1736975846122,0.7625,3444.3,3443.7,1.20693354]
[1736975846283,0.186,3444.2,3443.9,1.20693354]
[1736975846684,0.7625,3444.3,3443.9,1.20693354]
[1736975846879,0.186,3444.2,3443.9,1.20693354]
[1736975847282,2.90358,3444.1,3443.9,1.20693354]
[1736975847496,10.37177992,3444.0,3443.9,1.20693354]
[1736975847694,4.21626,3443.8,3443.7,1.20693354]
[1736975848220,7.21626,3443.8,3443.7,1.20693354]
[1736975848605,2.90444,3443.0,3442.9,0.3413121]
[1736975848928,3.85294,3443.0,3442.9,0.3413121]
[1736975849284,4.238234,3443.0,3442.2,1.81040031]
[1736975849828,4.238234,3443.0,3442.1,1.81040031]
[1736975850816,4.238234,3443.0,3442.0,5.53996031]
[1736975851404,1.333794,3443.0,3442.0,2.63470031]
[1736975851602,2.90455,3442.9,3442.0,2.63470031]
[1736975852018,2.90462,3442.8,3441.9,1.81040031]
[1736975852390,0.55,3442.7,3441.9,1.81040031]
[1736975852614,0.55,3442.7,3441.8,3.0]
[1736975852615,0.7625,3442.6,3441.8,3.0]
[1736975853044,0.55,3442.5,3441.7,1.81040031]
[1736975853244,0.55,3442.5,3441.6,2.41386708]
[1736975853245,2.90519,3442.2,3441.6,1.81040031]
[1736975853422,1.3125,3442.3,3441.6,1.81040031]
[1736975853622,0.7625,3442.2,3441.6,1.81040031]
[1736975853819,0.7625,3442.2,3441.2,1.81040031]
[1736975854346,2.90533,3442.0,3441.2,1.81040031]
[1736975854611,0.186,3441.9,3441.0,2.9061]
[1736975855322,0.186,3441.9,3441.0,3.46018003]
[1736975857223,0.186,3441.9,3441.0,2.9061]
[1736975859014,3.66762,3442.2,3440.8,4.21099463]
[1736975859216,0.186,3442.1,3440.9,0.83285609]
[1736975859514,0.186,3442.0,3440.9,0.8038]
[1736975860022,3.09129,3442.0,3441.1,2.90603]
[1736975860226,3.290749,3441.9,3441.0,3.0]
[1736975861146,0.385379,3441.9,3441.0,3.0]
[1736975861360,3.09133,3442.0,3441.0,2.90612]
[1736975862255,0.7824,3441.8,3440.9,0.8038]
[1736975862424,0.7824,3441.8,3441.0,3.0]
[1736975863651,0.7824,3441.8,3441.0,2.90611]
[1736975863856,2.90556,3441.7,3440.7,2.90637]
[1736975864056,1.3324,3441.5,3440.6,1.21099463]
[1736975864220,0.7824,3441.2,3440.6,1.21099463]
[1736975864630,0.7824,3441.2,3440.2,4.11778463]
[1736975864631,3.68839,3441.2,3440.2,4.11778463]
[1736975865352,3.68839,3441.2,3440.2,2.90679]
[1736975866136,0.7824,3441.2,3440.1,2.90689]
[1736975866343,0.7824,3441.2,3440.6,2.90643]
[1736975866553,0.7824,3441.2,3440.4,2.90659]
[1736975866735,0.7824,3441.2,3440.5,2.90654]
[1736975869069,0.7824,3441.2,3440.2,3.0]
[1736975869355,0.7824,3441.2,3440.6,2.90645]
[1736975871225,0.7824,3441.2,3440.2,6.54061042]
[1736975871559,0.186,3441.1,3440.5,2.90655]
[1736975871829,0.186,3441.0,3440.7,2.90631]
[1736975872170,0.186,3441.0,3440.8,3.0]
[1736975872376,0.30352376,3443.3,3441.0,2.90613]
[1736975872588,0.971,3443.2,3442.1,0.77]
[1736975872873,0.30352376,3443.3,3443.2,2.90427]
[1736975873175,0.186,3443.9,3443.5,2.90396]
[1736975873374,0.186,3443.9,3443.3,2.90416]
[1736975873576,0.186,3443.9,3442.9,0.77]
[1736975873774,0.55,3443.7,3442.3,0.77]
[1736975873983,1.13564719,3443.6,3442.7,1.21099463]
[1736975874474,1.13564719,3443.6,3442.6,3.0]
[1736975874691,1.13564719,3443.6,3442.3,0.77]
[1736975874976,4.03959719,3443.6,3442.1,1.21099463]
[1736975875151,0.186,3443.5,3442.4,2.90486]
[1736975875487,0.186,3443.5,3442.9,2.90448]
[1736975875700,0.186,3443.5,3442.5,3.0]
[1736975876045,0.186,3443.5,3442.3,3.77]
[1736975876245,0.186,3443.5,3442.4,0.667504]
[1736975877171,0.186,3443.5,3442.8,2.90459]
[1736975877444,3.68876,3443.8,3442.8,2.90459]
[1736975877643,0.186,3443.7,3442.8,2.90459]
[1736975878840,0.736,3443.7,3442.6,2.90475]
[1736975879047,0.736,3443.7,3442.4,3.667504]
[1736975879048,0.785,3443.5,3442.4,1.21099463]
[1736975879390,0.785,3442.7,3442.4,1.21099463]
[1736975879548,0.185,3442.6,3442.4,1.21099463]
[1736975879881,0.185,3442.6,3441.7,4.11651463]
[1736975880289,0.185,3442.6,3441.5,0.77]
[1736975880290,3.68986,3442.5,3441.5,2.90569]
[1736975880590,3.68986,3442.5,3441.2,1.21099463]
[1736975880741,3.68986,3442.5,3441.5,2.9057]
[1736975882184,0.55,3442.4,3441.1,3.77]
[1736975882362,3.45497,3442.4,3441.4,3.0]
[1736975882546,3.96924704,3442.4,3441.4,3.0]
[1736975883392,3.41924704,3442.4,3441.4,5.90578]
[1736975884060,3.6891,3443.5,3442.4,2.90493]
[1736975884277,3.0891,3443.4,3442.4,2.90493]
[1736975884490,0.785,3442.8,3441.9,3.0]
[1736975884663,0.785,3442.8,3441.8,1.21099463]
[1736975884851,2.90469,3442.7,3441.8,1.21099463]
[1736975885052,0.368969,3442.6,3441.8,1.21099463]
[1736975885366,0.368969,3442.6,3441.8,2.90544]
[1736975885569,0.785,3442.8,3442.1,3.0]
[1736975885875,0.185,3442.7,3442.1,3.0]